lending/lending_fUSD_20240621
["ID","MTS","AMOUNT","RATE_DAILY","PERIOD"]
[330069903,1718987596623,-151.0,0.00021917,2]
[330069904,1718987596649,-151.0,0.00021917,2]
[330069905,1718987596675,-500.0,0.00021917,4]
[330069906,1718987596701,-517.22562062,0.00021917,4]
[330069907,1718987596725,-500.0,0.00021917,4]
[330069908,1718987596750,-1598.19,0.00021917,4]
[330069909,1718987596775,-997.48,0.00021917,4]
[330069910,1718987596799,-500.0,0.00021917,4]
[330069911,1718987596822,-500.0,0.00021917,4]
[330069912,1718987596847,-1567.1,0.00021917,4]
[330069913,1718987597082,-500.0,0.00021917,4]
[330069914,1718987597129,-578.98256006,0.00021917,4]
[330069915,1718987597156,-500.0,0.00021917,4]
[330069916,1718987597181,-801.67,0.00021917,4]
[330069917,1718987597205,-507.47,0.00021917,4]
[330069918,1718987597232,-1099.79,0.00021917,4]
[330069919,1718987597257,-2352.73,0.00021917,4]
[330069920,1718987597281,-500.0,0.00021917,4]
[330069921,1718987597307,-11941.27,0.00021917,4]
[330069922,1718987597334,-500.0,0.00021917,4]
[330069923,1718987597360,-862.95,0.00021917,4]
[330069924,1718987597386,-1605.68,0.00021917,4]
[330069925,1718987597411,-3884.65,0.00021917,4]
[330069926,1718987597435,-500.0,0.00021917,4]
[330069927,1718987597459,-504.76693398,0.00021917,4]
[330069928,1718987597483,-387.00914139,0.00021917,4]
[330069929,1718987597509,-1291.68,0.00021917,4]
[330069930,1718987597537,-821.53,0.00021917,4]
[330069931,1718987597562,-500.0,0.00021917,4]
[330069932,1718987597586,-1301.32,0.00021917,4]
[330069933,1718987597611,-500.0,0.00021917,4]
[330069934,1718987597637,-2977.76,0.00021917,4]
[330069935,1718987597661,-908.18,0.00021917,4]
[330069936,1718987597687,-500.0,0.00021917,4]
[330069937,1718987597710,-500.0,0.00021917,4]
[330069938,1718987597735,-517.8,0.00021917,4]
[330069939,1718987597762,-915.59,0.00021917,4]
[330069940,1718987597787,-500.0,0.00021917,4]
[330069941,1718987597815,-710.53,0.00021917,4]
[330069942,1718987597841,-763.27,0.00021917,4]
[330069943,1718987597867,-4326.85,0.00021917,4]
[330069944,1718987597894,-778.19,0.00021917,4]
[330069945,1718987597918,-500.0,0.00021917,4]
[330069946,1718987597943,-8298.94,0.00021917,4]
[330069947,1718987597967,-500.0,0.00021917,4]
[330069948,1718987597992,-747.95,0.00021917,4]
[330069949,1718987598016,-500.0,0.00021917,4]
[330069950,1718987598039,-500.0,0.00021917,4]
[330069951,1718987598066,-863.86,0.00021917,4]
[330069952,1718987598090,-2886.25,0.00021917,4]
[330069953,1718987598115,-9766.92,0.00021917,4]
[330069954,1718987598140,-1335.58,0.00021917,4]
[330069955,1718987598165,-4134.18,0.00021917,4]
[330069956,1718987598189,-500.0,0.00021917,4]
[330069957,1718987598216,-500.0,0.00021917,4]
[330069958,1718987598241,-500.0,0.00021917,4]
[330069959,1718987598266,-500.0,0.00021917,4]
[330069960,1718987598291,-500.0,0.00021917,4]
[330069961,1718987598317,-581.67,0.00021917,4]
[330069962,1718987598344,-151.0,0.00021917,2]
[330069963,1718987598369,-500.0,0.00021917,4]
[330069964,1718987598396,-151.0,0.00021917,2]
[330069965,1718987598427,-500.0,0.00021917,4]
[330069966,1718987598454,-151.0,0.00021917,2]
[330069967,1718987598479,-500.0,0.00021917,4]
[330069968,1718987598505,-203.250678,0.00021917,2]
[330069969,1718987598531,-151.0,0.00021917,2]
[330069970,1718987598556,-627.19,0.00021917,4]
[330069971,1718987598582,-500.0,0.00021917,4]
[330069972,1718987598607,-500.0,0.00021917,4]
[330069973,1718987598634,-151.0,0.00021917,2]
[330069974,1718987598661,-500.0,0.00021917,4]
[330069975,1718987598686,-151.0,0.00021917,2]
[330069976,1718987598711,-151.0,0.00021917,2]
[330069977,1718987598736,-500.0,0.00021917,4]
[330069978,1718987598760,-3300.26,0.00021917,4]
[330069979,1718987598785,-151.0,0.00021917,2]
[330069980,1718987598811,-500.0,0.00021917,4]
[330069981,1718987598837,-177.798192,0.00021917,2]
[330069982,1718987598861,-500.0,0.00021917,4]
[330069983,1718987598885,-727.57,0.00021917,4]
[330069984,1718987598910,-1560.1,0.00021917,4]
[330069985,1718987598934,-500.0,0.00021917,4]
[330069986,1718987598959,-617.89,0.00021917,4]
[330069987,1718987598985,-5957.09,0.00021917,4]
[330069988,1718987599010,-7012.24,0.00021917,4]
[330069989,1718987599035,-500.0,0.00021917,4]
[330069990,1718987599062,-500.0,0.00021917,4]
[330069991,1718987599088,-500.0,0.00021917,4]
[330069992,1718987599113,-500.0,0.00021917,4]
[330069993,1718987599138,-500.0,0.00021917,4]
[330069994,1718987599162,-786.93,0.00021917,4]
[330069995,1718987599186,-2897.96,0.00021917,4]
[330069996,1718987599210,-1029.0,0.00021917,4]
[330069997,1718987599235,-2066.31,0.00021917,4]
[330069998,1718987599259,-500.0,0.00021917,4]
[330069999,1718987599284,-500.0,0.00021917,4]
[330070000,1718987599310,-1212.23,0.00021917,4]
[330070001,1718987599338,-4902.49,0.00021917,4]
[330070002,1718987599363,-1455.92,0.00021917,4]
[330070003,1718987599388,-500.0,0.00021917,4]
[330070004,1718987599414,-6153.32,0.00021917,4]
[330070005,1718987599438,-416.90228149,0.00021917,4]
[330070006,1718987599463,-9076.26,0.00021917,4]
[330070007,1718987599487,-650.88,0.00021917,4]
[330070008,1718987599512,-2546.71,0.00021917,4]
[330070009,1718987599537,-151.0,0.00021917,2]
[330070010,1718987599566,-151.0,0.00021917,2]
[330070011,1718987599590,-1969.7,0.00021917,4]
[330070012,1718987599617,-151.0,0.00021917,2]
[330070013,1718987599641,-151.0,0.00021917,2]
[330070014,1718987599665,-151.0,0.00021917,2]
[330070015,1718987599690,-732.66,0.00021917,4]
[330070016,1718987599716,-1205.11,0.00021917,4]
[330070017,1718987599740,-151.0,0.00021917,2]
[330070018,1718987599766,-5403.44,0.00021917,4]
[330070019,1718987599791,-151.0,0.00021917,2]
[330070020,1718987599817,-500.0,0.00021917,4]
[330070021,1718987599842,-151.0,0.00021917,2]
[330070022,1718987599866,-1479.96,0.00021917,4]
[330070023,1718987599890,-2347.72,0.00021917,4]
[330070024,1718987599915,-2639.11,0.00021917,4]
[330070025,1718987599940,-151.0,0.00021917,2]
[330070026,1718987599964,-151.0,0.00021917,2]
[330070027,1718987599988,-151.0,0.00021917,2]
[330070028,1718987600015,-762.84,0.00021917,4]
[330070029,1718987600040,-184.24855,0.00021917,2]
[330070030,1718987600064,-500.0,0.00021917,4]
[330070031,1718987600088,-2367.4,0.00021917,4]
[330070032,1718987600334,-938.33,0.00021917,4]
[330070033,1718987600361,-2587.22,0.00021917,4]
[330070034,1718987600387,-4752.09,0.00021917,4]
[330070035,1718987600413,-2963.99,0.00021917,4]
[330070036,1718987600438,-500.0,0.00021917,4]
[330070037,1718987600463,-500.0,0.00021917,4]
[330070038,1718987600488,-522.62,0.00021917,4]
[330070039,1718987600513,-500.0,0.00021917,4]
[330070040,1718987600540,-500.0,0.00021917,4]
[330070041,1718987600567,-1517.32,0.00021917,4]
[330070042,1718987600592,-630.61,0.00021917,4]
[330070043,1718987600617,-684.88,0.00021917,4]
[330070044,1718987600641,-622.91,0.00021917,4]
[330070045,1718987600665,-500.0,0.00021917,2]
[330070046,1718987600689,-500.0,0.00021917,4]
[330070047,1718987600713,-2216.26,0.00021917,4]
[330070048,1718987600738,-151.0,0.00021917,2]
[330070049,1718987600762,-500.0,0.00021917,4]
[330070050,1718987600786,-151.0,0.00021917,2]
[330070051,1718987600812,-151.0,0.00021917,2]
[330070052,1718987600837,-151.0,0.00021917,2]
[330070053,1718987600862,-500.0,0.00021917,4]
[330070054,1718987600887,-151.0,0.00021917,2]
[330070055,1718987600912,-1313.22,0.00021917,4]
[330070056,1718987600937,-1427.93,0.00021917,4]
[330070057,1718987600962,-500.0,0.00021917,4]
[330070058,1718987600986,-839.63,0.00021917,4]
[330070059,1718987601011,-3956.66,0.00021917,4]
[330070060,1718987601035,-1948.35,0.00021917,4]
[330070061,1718987601059,-151.0,0.00021917,2]
[330070062,1718987601089,-1226.54,0.00021917,4]
[330070063,1718987601115,-151.0,0.00021917,2]
[330070064,1718987601139,-151.0,0.00021917,2]
[330070065,1718987601164,-151.0,0.00021917,2]
[330070066,1718987601190,-500.0,0.00021917,2]
[330070067,1718987601214,-4677.14,0.00021917,4]
[330070068,1718987601238,-729.52,0.00021917,4]
[330070069,1718987601264,-638.08,0.00021917,4]
[330070070,1718987601288,-500.0,0.00021917,4]
[330070071,1718987601314,-500.0,0.00021917,4]
[330070072,1718987601340,-500.0,0.00021917,4]
[330070073,1718987601366,-8787.92,0.00021917,4]
[330070074,1718987601392,-3041.07,0.00021917,4]
[330070075,1718987601421,-762.39,0.00021917,4]
[330070076,1718987601446,-500.0,0.00021917,4]
[330070077,1718987601470,-500.0,0.00021917,4]
[330070078,1718987601495,-573.8,0.00021917,4]
[330070079,1718987601521,-1015.26,0.00021917,4]
[330070080,1718987601546,-1877.87,0.00021917,4]
[330070081,1718987601574,-1113.03,0.00021917,4]
[330070082,1718987601599,-981.66,0.00021917,4]
[330070083,1718987601626,-649.12,0.00021917,4]
[330070084,1718987601654,-2519.32,0.00021917,4]
[330070085,1718987601679,-500.0,0.00021917,4]
[330070086,1718987601709,-584.78,0.00021917,4]
[330070087,1718987601734,-500.0,0.00021917,4]
[330070088,1718987601758,-500.0,0.00021917,4]
[330070089,1718987601783,-1974.34,0.00021917,4]
[330070090,1718987601809,-2501.57,0.00021917,4]
[330070091,1718987601835,-500.0,0.00021917,4]
[330070092,1718987601860,-500.0,0.00021917,4]
[330070093,1718987601885,-951.7,0.00021917,4]
[330070094,1718987601911,-1036.27,0.00021917,4]
[330070095,1718987601936,-1390.54,0.00021917,4]
[330070096,1718987601964,-500.0,0.00021917,2]
[330070097,1718987601988,-500.0,0.00021917,4]
[330070098,1718987602015,-556.08,0.00021917,4]
[330070099,1718987602040,-3409.29,0.00021917,4]
[330070100,1718987602064,-2082.35,0.00021917,4]
[330070101,1718987602090,-657.28,0.00021917,4]
[330070102,1718987602114,-2142.67,0.00021917,4]
[330070103,1718987602141,-3798.27,0.00021917,4]
[330070104,1718987602165,-500.0,0.00021917,4]
[330070105,1718987602190,-932.12,0.00021917,4]
[330070106,1718987602215,-13268.21,0.00021917,4]
[330070107,1718987602240,-500.0,0.00021917,4]
[330070108,1718987602264,-1642.89,0.00021917,4]
[330070109,1718987602289,-500.0,0.00021917,4]
[330070110,1718987602314,-500.0,0.00021917,4]
[330070111,1718987602342,-2756.69,0.00021917,4]
[330070112,1718987602368,-500.0,0.00021917,4]
[330070113,1718987602394,-151.0,0.00021917,2]
[330070114,1718987602421,-151.0,0.00021917,2]
[330070115,1718987602446,-690.65,0.00021917,4]
[330070116,1718987602471,-151.0,0.00021917,2]
[330070117,1718987602495,-500.0,0.00021917,4]
[330070118,1718987602521,-2552.43,0.00021917,4]
[330070119,1718987602546,-1097.2,0.00021917,4]
[330070120,1718987602570,-500.0,0.00021917,4]
[330070121,1718987602594,-500.0,0.00021917,4]
[330070122,1718987602620,-500.0,0.00021917,4]
[330070123,1718987602644,-500.0,0.00021917,4]
[330070124,1718987602669,-2084.39,0.00021917,4]
[330070125,1718987602694,-13676.31,0.00021917,4]
[330070126,1718987602718,-500.0,0.00021917,4]
[330070127,1718987602742,-193.26736496,0.00021917,4]
[330070128,1718987602768,-1016.47,0.00021917,4]
[330070129,1718987602793,-3363.66,0.00021917,4]
[330070130,1718987602819,-2933.09,0.00021917,4]
[330070131,1718987602845,-500.0,0.00021917,4]
[330070132,1718987602870,-500.0,0.00021917,4]
[330070133,1718987602897,-500.0,0.00021917,4]
[330070134,1718987602923,-1542.09,0.00021917,4]
[330070135,1718987602949,-6952.97,0.00021917,4]
[330070136,1718987602974,-500.0,0.00021917,4]
[330070137,1718987603002,-500.0,0.00021917,4]
[330070138,1718987603030,-938.95,0.00021917,4]
[330070139,1718987603056,-520.1656322,0.00021917,4]
[330070140,1718987603080,-500.0,0.00021917,4]
[330070141,1718987603104,-1069.59,0.00021917,4]
[330070142,1718987603131,-886.36,0.00021917,4]
[330070143,1718987603156,-1902.16,0.00021917,4]
[330070144,1718987603182,-500.0,0.00021917,4]
[330070145,1718987603207,-500.0,0.00021917,4]
[330070146,1718987603232,-635.33665665,0.00021917,4]
[330070147,1718987603258,-500.0,0.00021917,4]
[330070148,1718987603283,-500.0,0.00021917,4]
[330070149,1718987603316,-880.22,0.00021917,4]
[330070150,1718987603343,-811.91,0.00021917,4]
[330070151,1718987603577,-7009.17,0.00021917,4]
[330070152,1718987603605,-969.18,0.00021917,4]
[330070153,1718987603634,-50636.16,0.00021917,4]
[330070154,1718987603659,-7562.48,0.00021917,4]
[330070155,1718987603686,-2029.8,0.00021917,4]
[330070156,1718987603710,-500.0,0.00021917,4]
[330070157,1718987603735,-500.0,0.00021917,4]
[330070158,1718987603762,-8013.9,0.00021917,4]
[330070159,1718987603786,-500.0,0.00021917,4]
[330070160,1718987603812,-500.0,0.00021917,4]
[330070161,1718987603837,-1726.57,0.00021917,4]
[330070162,1718987603862,-2158.25,0.00021917,4]
[330070163,1718987603887,-993.96,0.00021917,4]
[330070164,1718987603913,-500.0,0.00021917,4]
[330070165,1718987603938,-500.0,0.00021917,4]
[330070166,1718987603964,-500.0,0.00021917,4]
[330070167,1718987603990,-50282.24,0.00021917,4]
[330070168,1718987604016,-500.0,0.00021917,4]
[330070169,1718987604046,-2771.9,0.00021917,4]
[330070170,1718987604076,-1820.07,0.00021917,4]
[330070171,1718987604101,-500.0,0.00021917,2]
[330070172,1718987604127,-500.0,0.00021917,4]
[330070173,1718987604152,-1354.34,0.00021917,4]
[330070174,1718987604177,-3492.83,0.00021917,4]
[330070175,1718987604203,-2998.47,0.00021917,4]
[330070176,1718987604228,-686.57,0.00021917,4]
[330070177,1718987604253,-4141.01,0.00021917,4]
[330070178,1718987604279,-560.77,0.00021917,4]
[330070179,1718987604304,-15952.05,0.00021917,4]
[330070180,1718987604331,-500.0,0.00021917,4]
[330070181,1718987604360,-531.69409657,0.00021917,4]
[330070182,1718987604388,-1949.64,0.00021917,4]
[330070183,1718987604413,-500.0,0.00021917,4]
[330070184,1718987604439,-1127.43,0.00021917,4]
[330070185,1718987604465,-500.0,0.00021917,4]
[330070186,1718987604491,-500.0,0.00021917,4]
[330070187,1718987604517,-2371.42,0.00021917,4]
[330070188,1718987604543,-500.0,0.00021917,4]
[330070189,1718987604570,-500.0,0.00021917,4]
[330070190,1718987604595,-500.0,0.00021917,4]
[330070191,1718987604621,-891.83,0.00021917,4]
[330070192,1718987604647,-1229.62,0.00021917,4]
[330070193,1718987604673,-500.0,0.00021917,4]
[330070194,1718987604699,-1051.5,0.00021917,4]
[330070195,1718987604724,-1609.38,0.00021917,4]
[330070196,1718987604749,-1999.75,0.00021917,4]
[330070197,1718987604774,-500.0,0.00021917,4]
[330070198,1718987604803,-1084.42,0.00021917,4]
[330070199,1718987604829,-500.0,0.00021917,4]
[330070200,1718987604855,-500.0,0.00021917,4]
[330070201,1718987604880,-1470.45,0.00021917,4]
[330070202,1718987604906,-8122.62,0.00021917,4]
[330070203,1718987604932,-842.2,0.00021917,4]
[330070204,1718987604957,-1589.92,0.00021917,4]
[330070205,1718987604982,-500.0,0.00021917,4]
[330070206,1718987605008,-720.26,0.00021917,4]
[330070207,1718987605034,-788.55,0.00021917,4]
[330070208,1718987605062,-500.0,0.00021917,4]
[330070209,1718987605090,-1802.15,0.00021917,4]
[330070210,1718987605116,-6581.34,0.00021917,4]
[330070211,1718987605143,-797.01,0.00021917,4]
[330070212,1718987605169,-1538.77,0.00021917,4]
[330070213,1718987605194,-636.56,0.00021917,4]
[330070214,1718987605221,-500.0,0.00021917,4]
[330070215,1718987605247,-500.0,0.00021917,4]
[330070216,1718987605272,-500.0,0.00021917,4]
[330070217,1718987605299,-257.48953,0.00021917,2]
[330070218,1718987605332,-500.0,0.00021917,4]
[330070219,1718987605359,-500.0,0.00021917,4]
[330070220,1718987605386,-382.90974088,0.00021917,4]
[330070221,1718987605414,-2836.03,0.00021917,4]
[330070222,1718987605440,-1909.95,0.00021917,4]
[330070223,1718987605465,-1101.59,0.00021917,4]
[330070224,1718987605490,-543.79,0.00021917,4]
[330070225,1718987605517,-1937.65,0.00021917,4]
[330070226,1718987605542,-500.0,0.00021917,4]
[330070227,1718987605569,-570.2,0.00021917,4]
[330070228,1718987605596,-463.652632,0.00021917,2]
[330070229,1718987605623,-463.652632,0.00021917,2]
[330070230,1718987605649,-16148.42,0.00021917,4]
[330070231,1718987605675,-463.652632,0.00021917,2]
[330070232,1718987605704,-463.652632,0.00021917,2]
[330070233,1718987605730,-500.0,0.00021917,4]
[330070234,1718987605758,-463.652632,0.00021917,2]
[330070235,1718987605784,-463.652632,0.00021917,2]
[330070236,1718987605809,-1235.33,0.00021917,4]
[330070237,1718987605834,-463.652632,0.00021917,2]
[330070238,1718987605859,-3635.23,0.00021917,4]
[330070239,1718987605884,-463.652632,0.00021917,2]
[330070240,1718987605909,-463.652632,0.00021917,2]
[330070241,1718987605934,-500.0,0.00021917,4]
[330070242,1718987605960,-463.652632,0.00021917,2]
[330070243,1718987605984,-500.0,0.00021917,4]
[330070244,1718987606010,-463.652632,0.00021917,2]
[330070245,1718987606034,-500.0,0.00021917,4]
[330070246,1718987606059,-463.652632,0.00021917,2]
[330070247,1718987606083,-745.48,0.00021917,4]
[330070248,1718987606108,-500.0,0.00021917,4]
[330070249,1718987606133,-151.0,0.00021917,2]
[330070250,1718987606158,-151.0,0.00021917,2]
[330070251,1718987606182,-151.0,0.00021917,2]
[330070252,1718987606207,-463.652632,0.00021917,2]
[330070253,1718987606235,-151.0,0.00021917,2]
[330070254,1718987606262,-463.652632,0.00021917,2]
[330070255,1718987606286,-1276.04,0.00021917,4]
[330070256,1718987606315,-463.652632,0.00021917,2]
[330070257,1718987606343,-151.0,0.00021917,2]
[330070258,1718987606369,-463.652632,0.00021917,2]
[330070259,1718987606396,-151.0,0.00021917,2]
[330070260,1718987606422,-500.0,0.00021917,4]
[330070261,1718987606449,-463.652632,0.00021917,2]
[330070262,1718987606476,-151.0,0.00021917,2]
[330070263,1718987606501,-500.0,0.00021917,4]
[330070264,1718987606526,-2167.68,0.00021917,4]
[330070265,1718987606551,-463.652632,0.00021917,2]
[330070266,1718987606579,-151.0,0.00021917,2]
[330070267,1718987606606,-151.0,0.00021917,2]
[330070268,1718987606634,-1136.44,0.00021917,4]
[330070270,1718987606873,-734.82,0.00021917,4]
[330070271,1718987606900,-500.0,0.00021917,4]
[330070272,1718987606929,-151.0,0.00021917,2]
[330070273,1718987606956,-151.0,0.00021917,2]
[330070274,1718987606981,-500.0,0.00021917,4]
[330070275,1718987607008,-871.92,0.00021917,4]
[330070276,1718987607034,-529.60392439,0.00021917,4]
[330070277,1718987607060,-151.0,0.00021917,2]
[330070278,1718987607085,-151.0,0.00021917,2]
[330070279,1718987607111,-500.0,0.00021917,4]
[330070280,1718987607139,-193.551024,0.00021917,2]
[330070281,1718987607166,-500.0,0.00021917,4]
[330070282,1718987607192,-1599.22,0.00021917,4]
[330070283,1718987607217,-583.98,0.00021917,4]
[330070284,1718987607242,-500.0,0.00021917,4]
[330070285,1718987607271,-500.0,0.00021917,4]
[330070286,1718987607297,-2235.25,0.00021917,4]
[330070287,1718987607324,-19547.2,0.00021917,4]
[330070288,1718987607353,-2567.94,0.00021917,4]
[330070289,1718987607380,-670.21,0.00021917,4]
[330070290,1718987607405,-1774.01,0.00021917,4]
[330070291,1718987607432,-500.0,0.00021917,4]
[330070292,1718987607457,-2065.38,0.00021917,4]
[330070293,1718987607483,-518.37,0.00021917,4]
[330070294,1718987607508,-19923.27,0.00021917,4]
[330070295,1718987607535,-3244.32,0.00021917,4]
[330070296,1718987607561,-394.60697785,0.00021917,4]
[330070297,1718987607588,-151.0,0.00021917,2]
[330070298,1718987607614,-500.0,0.00021917,4]
[330070299,1718987607639,-500.0,0.00021917,4]
[330070300,1718987607666,-7293.48,0.00021917,4]
[330070301,1718987607694,-500.0,0.00021917,4]
[330070302,1718987607719,-162.44033,0.00021917,2]
[330070303,1718987607746,-3165.3,0.00021917,4]
[330070304,1718987607772,-1503.02,0.00021917,4]
[330070305,1718987607799,-752.27,0.00021917,4]
[330070306,1718987607826,-500.0,0.00021917,4]
[330070307,1718987607854,-1961.51,0.00021917,4]
[330070308,1718987607882,-3021.63,0.00021917,4]
[330070309,1718987607908,-500.0,0.00021917,4]
[330070310,1718987607935,-500.0,0.00021917,4]
[330070311,1718987607962,-849.14,0.00021917,4]
[330070312,1718987607987,-2065.4,0.00021917,4]
[330070313,1718987608014,-500.0,0.00021917,4]
[330070314,1718987608042,-152.010443,0.00021917,2]
[330070315,1718987608067,-500.0,0.00021917,4]
[330070316,1718987608093,-1199.26,0.00021917,4]
[330070317,1718987608119,-1399.75,0.00021917,4]
[330070318,1718987608146,-6577.21,0.00021917,4]
[330070319,1718987608171,-834.46,0.00021917,4]
[330070320,1718987608195,-1482.79,0.00021917,4]
[330070321,1718987608220,-882.56,0.00021917,4]
[330070322,1718987608246,-500.0,0.00021917,4]
[330070323,1718987608272,-500.0,0.00021917,4]
[330070324,1718987608296,-590.18,0.00021917,4]
[330070325,1718987608321,-500.0,0.00021917,4]
[330070326,1718987608350,-1381.12,0.00021917,4]
[330070327,1718987608376,-844.18,0.00021917,4]
[330070328,1718987608402,-5000.0,0.00021917,4]
[330070329,1718987608427,-551.76,0.00021917,4]
[330070330,1718987608457,-8470.5,0.00021917,4]
[330070331,1718987608482,-1617.02,0.00021917,4]
[330070332,1718987608508,-1857.89,0.00021917,4]
[330070333,1718987608533,-1228.5,0.00021917,4]
[330070334,1718987608558,-2422.26,0.00021917,4]
[330070335,1718987608583,-3321.71,0.00021917,4]
[330070336,1718987608608,-2936.63,0.00021917,4]
[330070337,1718987608634,-500.0,0.00021917,4]
[330070338,1718987608659,-1310.91,0.00021917,4]
[330070339,1718987608684,-500.0,0.00021917,4]
[330070340,1718987608710,-500.0,0.00021917,4]
[330070341,1718987608736,-895.12,0.00021917,4]
[330070342,1718987608763,-500.0,0.00021917,4]
[330070343,1718987608788,-500.0,0.00021917,4]
[330070344,1718987608817,-500.0,0.00021917,4]
[330070345,1718987608843,-500.0,0.00021917,4]
[330070346,1718987608871,-550.41596801,0.00021917,4]
[330070347,1718987608895,-250.0,0.00021917,4]
[330070348,1718987608927,-500.0,0.00021917,4]
[330070349,1718987608953,-1826.36,0.00021917,4]
[330070350,1718987608980,-3025.07,0.00021917,4]
[330070351,1718987609007,-500.0,0.00021917,4]
[330070352,1718987609034,-4999.4,0.00021917,4]
[330070353,1718987609064,-1875.93,0.00021917,4]
[330070354,1718987609091,-971.37,0.00021917,4]
[330070355,1718987609117,-500.0,0.00021917,4]
[330070356,1718987609144,-5235.31,0.00021917,4]
[330070357,1718987609172,-3156.82,0.00021917,4]
[330070358,1718987609201,-500.0,0.00021917,4]
[330070359,1718987609228,-500.0,0.00021917,4]
[330070360,1718987609252,-661.37,0.00021917,4]
[330070361,1718987609279,-591.12,0.00021917,4]
[330070362,1718987609306,-500.0,0.00021917,4]
[330070363,1718987609339,-1493.29,0.00021917,4]
[330070364,1718987609363,-500.0,0.00021917,4]
[330070365,1718987609389,-500.0,0.00021917,4]
[330070366,1718987609415,-500.0,0.00021917,4]
[330070367,1718987609442,-500.0,0.00021917,4]
[330070368,1718987609468,-649.0939423,0.00021917,4]
[330070369,1718987609494,-938.34,0.00021917,4]
[330070370,1718987609521,-1478.18,0.00021917,4]
[330070371,1718987609546,-503.92,0.00021917,4]
[330070372,1718987609572,-1913.87,0.00021917,4]
[330070373,1718987609598,-1367.97,0.00021917,4]
[330070374,1718987609623,-500.0,0.00021917,4]
[330070375,1718987609649,-630.73,0.00021917,4]
[330070376,1718987609675,-500.0,0.00021917,4]
[330070377,1718987609701,-988.95,0.00021917,4]
[330070378,1718987609726,-500.0,0.00021917,4]
[330070379,1718987609753,-500.0,0.00021917,4]
[330070380,1718987609779,-500.0,0.00021917,4]
[330070381,1718987609806,-762.85,0.00021917,4]
[330070382,1718987609832,-4592.57,0.00021917,4]
[330070383,1718987609859,-617.63,0.00021917,4]
[330070384,1718987609886,-290.669504,0.00021917,2]
[330070385,1718987609911,-500.0,0.00021917,4]
[330070386,1718987609937,-1755.83,0.00021917,4]
[330070387,1718987609964,-519.63,0.00021917,4]
[330070388,1718987610200,-1335.29,0.00021917,4]
[330070389,1718987610225,-500.0,0.00021917,4]
[330070390,1718987610249,-500.0,0.00021917,4]
[330070391,1718987610274,-500.0,0.00021917,4]
[330070392,1718987610299,-500.0,0.00021917,4]
[330070393,1718987610325,-500.0,0.00021917,4]
[330070394,1718987610354,-500.0,0.00021917,4]
[330070395,1718987610379,-546.29,0.00021917,4]
[330070396,1718987610408,-30707.08,0.00021917,4]
[330070397,1718987610436,-500.0,0.00021917,4]
[330070398,1718987610462,-583.87,0.00021917,4]
[330070399,1718987610490,-745.75,0.00021917,4]
[330070400,1718987610517,-6613.25,0.00021917,4]
[330070401,1718987610543,-172.35,0.00021918,2]
[330070402,1718987610571,-150.0,0.00021918,2]
[330070403,1718987610596,-150.0,0.00021918,2]